2CCN - Level 2 Cost Centre Name,,9CCN - Level 9 Cost Centre Name,9CCC - Level 9 Cost Centre Code,9AN - Level 9 Account Name,9AC - Level 9 Account Code,Date posted,Date of transaction,Merchant Name,Merchant City,Merchant State,Merchant Zip Code,Originating Account Name,Originating Account Number,MCC/SIC Code,MCC Description,Original Amount,Currency,Conversion Rate,Billed Amount,Debit Credit,Reference Number,Statement Cycle,Account Name
Gloucester City Council,23UE,Museum of Gloucester Catering,MU004,Hospitality & Refreshments,3104,07/01/2020,06/01/2020,SAINSBURYS LOC (4304),GLOUCESTER,GBR,GL1 4JE,REDACTED,556*********9934,5411,"GROCERY STORES, SUPERMARKETS",1.6,Pound Sterling (826),1.000000000,1.6,Debit,25425150007020186863500,02/02/2020,GLOUCESTER CITY COUNCIL
Gloucester City Council,23UE,Museum of Gloucester,MU002,General Supplies/Materials,3025,08/01/2020,07/01/2020,SAFPRO INDUSTRIAL SUPP,GLOUCESTER,,GL2 5EU,REDACTED,556*********9934,5085,INDUSTRIAL SUPPLIES NOT ELSEWHERE CLASSI,46.32,Pound Sterling (826),1.000000000,46.32,Debit,55541960007937000091216,02/02/2020,GLOUCESTER CITY COUNCIL
Gloucester City Council,23UE,Museum of Gloucester,MU002,General Supplies/Materials,3025,09/01/2020,08/01/2020,WATERSTONES,GLOUCESTER,GBR,GL1 1NS,REDACTED,556*********9934,5942,BOOK STORES,20.98,Pound Sterling (826),1.000000000,20.98,Debit,25377750009040143375714,02/02/2020,GLOUCESTER CITY COUNCIL
Gloucester City Council,23UE,Museum of Gloucester,MU002,Exhibition Costs,3021,13/01/2020,09/01/2020,SCREWFIX DIRECT,YEOVIL,,BA228RT,REDACTED,556*********9934,5211,LUMBER AND BUILDING MATERIALS STORES,20.9,Pound Sterling (826),1.000000000,20.9,Debit,85481470010203004707271,02/02/2020,GLOUCESTER CITY COUNCIL
Gloucester City Council,23UE,Museum of Gloucester,MU002,General Supplies/Materials,3025,13/01/2020,10/01/2020,SAFPRO INDUSTRIAL SUPP,GLOUCESTER,,GL2 5EU,REDACTED,556*********9934,5085,INDUSTRIAL SUPPLIES NOT ELSEWHERE CLASSI,75,Pound Sterling (826),1.000000000,75,Debit,55541960010939000103640,02/02/2020,GLOUCESTER CITY COUNCIL
Gloucester City Council,23UE,Museum of Gloucester Catering,MU004,Hospitality & Refreshments,3104,13/01/2020,11/01/2020,ASDA SUPERSTORE,GLOUCESTER,GBR,GL1 1DS,REDACTED,556*********9934,5411,"GROCERY STORES, SUPERMARKETS",13.85,Pound Sterling (826),1.000000000,13.85,Debit,05377750012060708931609,02/02/2020,GLOUCESTER CITY COUNCIL
Gloucester City Council,23UE,Museum of Gloucester,MU002,General Supplies/Materials,3025,20/01/2020,18/01/2020,THE WORKS,GLOUCESTER,,GL1 2NG,REDACTED,556*********9934,5310,DISCOUNT STORES,14,Pound Sterling (826),1.000000000,14,Debit,85481470019205349695054,02/02/2020,GLOUCESTER CITY COUNCIL
Gloucester City Council,23UE,Museum of Gloucester Catering,MU004,Hospitality & Refreshments,3104,20/01/2020,18/01/2020,ASDA SUPERSTORE,GLOUCESTER,GBR,GL1 1DS,REDACTED,556*********9934,5411,"GROCERY STORES, SUPERMARKETS",1.5,Pound Sterling (826),1.000000000,1.5,Debit,15377750019010777782559,02/02/2020,GLOUCESTER CITY COUNCIL
Gloucester City Council,23UE,Museum of Gloucester Catering,MU004,Hospitality & Refreshments,3104,28/01/2020,27/01/2020,TESCO STORES 6819,GLOUCESTER,GBR,GL1 1TP,REDACTED,556*********9934,5411,"GROCERY STORES, SUPERMARKETS",3.3,Pound Sterling (826),1.000000000,3.3,Debit,15377750028070066623863,02/02/2020,GLOUCESTER CITY COUNCIL
Gloucester City Council,23UE,Museum of Gloucester,MU002,Exhibition Costs,3021,30/01/2020,29/01/2020,WH SMITH,GLOUCESTER,GBR,GL1 1NZ,REDACTED,556*********9934,5994,NEWS DEALERS AND NEWSSTANDS,9.98,Pound Sterling (826),1.000000000,9.98,Debit,35377750030090333878516,02/02/2020,GLOUCESTER CITY COUNCIL
Gloucester City Council,23UE,Museum of Gloucester,MU002,General Supplies/Materials,3025,31/01/2020,30/01/2020,WILKO RETAIL LIMITED,GLOUCESTER,GBR,GL1 1SL,REDACTED,556*********9934,5399,MISCELLANEOUS GENERAL MERCHANDISE STORES,27.5,Pound Sterling (826),1.000000000,27.5,Debit,25425150031010250562872,02/02/2020,GLOUCESTER CITY COUNCIL
Gloucester City Council,23UE,Managing Director & Directors,MT001,Public Transport - Staff,2402,09/01/2020,08/01/2020,Trainline,London,GBR,1445,REDACTED,556*********7811,4112,PASSENGER RAILWAYS,176.3,Pound Sterling (826),1.000000000,176.3,Debit,85130080008001746294780,02/02/2020,GLOUCESTER CITY COUNCIL
Gloucester City Council,23UE,Managing Director & Directors,MT001,Public Transport - Staff,2402,17/01/2020,16/01/2020,Trainline,London,GBR,1445,REDACTED,556*********7811,4112,PASSENGER RAILWAYS,28.35,Pound Sterling (826),1.000000000,28.35,Debit,85130080016002159616428,02/02/2020,GLOUCESTER CITY COUNCIL
Gloucester City Council,23UE,Managing Director & Directors,MT001,Public Transport - Staff,2402,24/01/2020,23/01/2020,Trainline,London,GBR,1445,REDACTED,556*********7811,4112,PASSENGER RAILWAYS,198,Pound Sterling (826),1.000000000,198,Debit,85130080023003506640039,02/02/2020,GLOUCESTER CITY COUNCIL
Gloucester City Council,23UE,Managing Director & Directors,MT001,Public Transport - Staff,2402,07/01/2020,06/01/2020,Trainline,London,GBR,1445,REDACTED,556*********1418,4112,PASSENGER RAILWAYS,127.2,Pound Sterling (826),1.000000000,127.2,Debit,85130080006000642360671,02/02/2020,GLOUCESTER CITY COUNCIL
Gloucester City Council,23UE,Managing Director & Directors,MT001,Conference Fees,0553,08/01/2020,07/01/2020,WWW.EMAP.COM,LONDON,,EC2A 4NQ,REDACTED,556*********1418,2741,MISCELLANEOUS PUBLISHING & PRINTING,321.55,Pound Sterling (826),1.000000000,321.55,Debit,55203340008003000541297,02/02/2020,GLOUCESTER CITY COUNCIL
Gloucester City Council,23UE,Head of Regeneration & Economic Development,MT005,Public Transport - Staff,2402,15/01/2020,14/01/2020,Trainline,London,GBR,1445,REDACTED,556*********1418,4112,PASSENGER RAILWAYS,62.8,Pound Sterling (826),1.000000000,62.8,Debit,85130080014001053797088,02/02/2020,GLOUCESTER CITY COUNCIL
Gloucester City Council,23UE,Members Support,DS002,Members Travel Expenses,3609,15/01/2020,14/01/2020,Trainline,London,GBR,1445,REDACTED,556*********1418,4112,PASSENGER RAILWAYS,105.2,Pound Sterling (826),1.000000000,105.2,Debit,85130080014001053782072,02/02/2020,GLOUCESTER CITY COUNCIL
Gloucester City Council,23UE,Managing Director & Directors,MT001,Public Transport - Staff,2402,15/01/2020,14/01/2020,Trainline,London,GBR,1445,REDACTED,556*********1418,4112,PASSENGER RAILWAYS,83.1,Pound Sterling (826),1.000000000,83.1,Debit,85130080014001053785216,02/02/2020,GLOUCESTER CITY COUNCIL
Gloucester City Council,23UE,Managing Director & Directors,MT001,Public Transport - Staff,2402,21/01/2020,20/01/2020,Trainline,London,GBR,1445,REDACTED,556*********1418,4112,PASSENGER RAILWAYS,149.4,Pound Sterling (826),1.000000000,149.4,Debit,85130080020002345821886,02/02/2020,GLOUCESTER CITY COUNCIL
Gloucester City Council,23UE,Elections,DS004,Public Transport - Staff,2402,21/01/2020,20/01/2020,Trainline,London,GBR,1445,REDACTED,556*********1418,4112,PASSENGER RAILWAYS,162.9,Pound Sterling (826),1.000000000,162.9,Debit,85130080020002345820359,02/02/2020,GLOUCESTER CITY COUNCIL
Gloucester City Council,23UE,Growth and Delivery Manager,PL001,External Training Course Fees,0550,31/01/2020,30/01/2020,GOVERNMENT EVENTS,COVENT GARDEN,LND,WC2E 9RA,REDACTED,556*********1418,8641,"CIVIC, SOCIAL AND FRATERNAL ASSOCIATIONS",420.12,Pound Sterling (826),1.000000000,420.12,Debit,85383900030000002054545,02/02/2020,GLOUCESTER CITY COUNCIL
Gloucester City Council,23UE,Countryside Unit,EP003,Vehicle Repairs and Maintenance,2103,07/01/2020,06/01/2020,PAYPAL *OFFROADROVE EB,35314369001,GBR,TW91EH,REDACTED,556*********6734,5533,"AUTOMOTIVE PARTS, ACCESSORIES STORES",-20.45,Pound Sterling (826),1.000000000,-20.45,Credit,85130080006000631759891,02/02/2020,GLOUCESTER CITY COUNCIL
Gloucester City Council,23UE,Countryside Unit,EP003,Professional Advice/Consultants Fees,3952,14/01/2020,13/01/2020,PAYPAL *GLOS ORCH T,35314369001,GBR,TW91EH,REDACTED,556*********6734,8398,CHARITABLE AND SOCIAL SERVICE ORGANIZATIONS,25,Pound Sterling (826),1.000000000,25,Debit,85130080013001993439164,02/02/2020,GLOUCESTER CITY COUNCIL
Gloucester City Council,23UE,Countryside Unit,EP003,General Supplies/Materials,3025,15/01/2020,14/01/2020,AMZNMktplace,amazon.co.uk,GBR,EC2A 2FA,REDACTED,556*********6734,5999,MISCELLANEOUS AND RETAIL STORES,31.97,Pound Sterling (826),1.000000000,31.97,Debit,52692010014200940409827,02/02/2020,GLOUCESTER CITY COUNCIL
Gloucester City Council,23UE,Countryside Unit,EP003,General Supplies/Materials,3025,30/01/2020,29/01/2020,HEMPSTED MARINE LTD,HEMPSTED,GBR,GL2 5DH,REDACTED,556*********6734,7699,MISCELLANEOUS REPAIR SHOPS AND RELATED SERVICES,74.34,Pound Sterling (826),1.000000000,74.34,Debit,05272460030910002024065,02/02/2020,GLOUCESTER CITY COUNCIL
Gloucester City Council,23UE,Guildhall Bar and Caf�,GH005,Equipment and Furniture,3001,10/01/2020,10/01/2020,Amazon.co.uk*2U2DE7IY5,AMAZON.CO.UK,LUX,L2338,REDACTED,556*********8997,5969,ALL OTHER DIRECT MARKETERS,35.4,Pound Sterling (826),1.000000000,35.4,Debit,52692010010200867293356,02/02/2020,GLOUCESTER CITY COUNCIL
Gloucester City Council,23UE,Guildhall Bar and Caf�,GH005,Equipment and Furniture,3001,10/01/2020,10/01/2020,Amazon.co.uk*5I07P2DN5,AMAZON.CO.UK,LUX,L2338,REDACTED,556*********8997,5969,ALL OTHER DIRECT MARKETERS,31.86,Pound Sterling (826),1.000000000,31.86,Debit,52692010010200868059202,02/02/2020,GLOUCESTER CITY COUNCIL
Gloucester City Council,23UE,Guildhall Bar and Caf�,GH005,Equipment and Furniture,3001,10/01/2020,10/01/2020,AMZNMktplace,amazon.co.uk,GBR,EC2A 2FA,REDACTED,556*********8997,5999,MISCELLANEOUS AND RETAIL STORES,53.12,Pound Sterling (826),1.000000000,53.12,Debit,52692010010200890216259,02/02/2020,GLOUCESTER CITY COUNCIL
Gloucester City Council,23UE,Guildhall Bar and Caf�,GH005,Equipment and Furniture,3001,13/01/2020,10/01/2020,AMZNMktplace,amazon.co.uk,GBR,EC2A 2FA,REDACTED,556*********8997,5999,MISCELLANEOUS AND RETAIL STORES,64,Pound Sterling (826),1.000000000,64,Debit,52692010010200938612261,02/02/2020,GLOUCESTER CITY COUNCIL
Gloucester City Council,23UE,Guildhall Bar and Caf�,GH005,Equipment and Furniture,3001,13/01/2020,10/01/2020,AMZNMktplace,amazon.co.uk,GBR,EC2A 2FA,REDACTED,556*********8997,5999,MISCELLANEOUS AND RETAIL STORES,12.8,Pound Sterling (826),1.000000000,12.8,Debit,52692010010200939651839,02/02/2020,GLOUCESTER CITY COUNCIL
Gloucester City Council,23UE,Guildhall Bar and Caf�,GH005,Equipment and Furniture,3001,13/01/2020,10/01/2020,AMZNMKTPLACE AMAZON.CO,AMAZON.CO.UK,GBR,EC2A 2FA,REDACTED,556*********8997,5999,MISCELLANEOUS AND RETAIL STORES,6.99,Pound Sterling (826),1.000000000,6.99,Debit,85389240010001808975924,02/02/2020,GLOUCESTER CITY COUNCIL
Gloucester City Council,23UE,Guildhall Bar and Caf�,GH005,Catering Provisions,3103,13/01/2020,11/01/2020,TESCO STORE 3074,QUEDGELEY,GBR,GL2 4PF,REDACTED,556*********8997,5411,"GROCERY STORES, SUPERMARKETS",52.87,Pound Sterling (826),1.000000000,52.87,Debit,85377750012060470481645,02/02/2020,GLOUCESTER CITY COUNCIL
Gloucester City Council,23UE,Gloucester Life Museum,MU005,Archiving,3402,13/01/2020,09/01/2020,SAFETYSUPPL,02089036333,GBR,HA01NR,REDACTED,556*********8997,5311,DEPARTMENT STORES,-31.67,Pound Sterling (826),1.000000000,-31.67,Credit,85130080010001806358570,02/02/2020,GLOUCESTER CITY COUNCIL
Gloucester City Council,23UE,Shopmobility,SM001,Equipment and Furniture,3001,16/01/2020,15/01/2020,AMZNMktplace,amazon.co.uk,GBR,EC2A 2FA,REDACTED,556*********8997,5999,MISCELLANEOUS AND RETAIL STORES,26.29,Pound Sterling (826),1.000000000,26.29,Debit,52692010015200112687472,02/02/2020,GLOUCESTER CITY COUNCIL
Gloucester City Council,23UE,Guildhall Events,GH002,Advertising & Publicity,3404,20/01/2020,18/01/2020,MAILCHIMP *MONTHLY,MAILCHIMP.COM,GA,30308,REDACTED,556*********8997,5968,CONTINUITY/SUBSCRIPTION MERCHANTS,38.76,Pound Sterling (826),1.000000000,38.76,Debit,55425440018200025236683,02/02/2020,GLOUCESTER CITY COUNCIL
Gloucester City Council,23UE,Guildhall Events,GH002,Advertising & Publicity,3404,20/01/2020,18/01/2020,FACEBK *7FMYTR2AX2,fb.me/ads,IRL,UNKNOWN,REDACTED,556*********8997,7311,ADVERTISING SERVICES,40.32,Pound Sterling (826),1.000000000,40.32,Debit,55204720018200017833481,02/02/2020,GLOUCESTER CITY COUNCIL
Gloucester City Council,23UE,Docks Complex - Services,AM006,Hospitality & Refreshments,3104,03/01/2020,02/01/2020,CO-OPERATIVE FOOD,GLOUCESTER,,GL32AB,REDACTED,556*********4301,5411,"GROCERY STORES, SUPERMARKETS",3.3,Pound Sterling (826),1.000000000,3.3,Debit,85481470003201481328438,02/02/2020,GLOUCESTER CITY COUNCIL
Gloucester City Council,23UE,Docks Complex - Services,AM006,Hospitality & Refreshments,3104,03/01/2020,02/01/2020,SAINSBURYS SACAT 2221,GLOUCESTER,GBR,GL2 5SA,REDACTED,556*********6128,5411,"GROCERY STORES, SUPERMARKETS",1.5,Pound Sterling (826),1.000000000,1.5,Debit,25425150003000192643975,02/02/2020,GLOUCESTER CITY COUNCIL
Gloucester City Council,23UE,Docks Complex - Services,AM006,Hospitality & Refreshments,3104,13/01/2020,10/01/2020,SAINSBURYS SACAT 2221,GLOUCESTER,GBR,GL2 5SA,REDACTED,556*********6128,5411,"GROCERY STORES, SUPERMARKETS",6.75,Pound Sterling (826),1.000000000,6.75,Debit,25425150011060191213998,02/02/2020,GLOUCESTER CITY COUNCIL
Gloucester City Council,23UE,Docks Complex - Services,AM006,Building Repairs and Maintenance,1001,14/01/2020,12/01/2020,AMZNMKTPLACE AMAZON.CO,AMAZON.CO.UK,GBR,EC2A 2FA,REDACTED,556*********6128,5999,MISCELLANEOUS AND RETAIL STORES,5.99,Pound Sterling (826),1.000000000,5.99,Debit,85389240013001817537423,02/02/2020,GLOUCESTER CITY COUNCIL
Gloucester City Council,23UE,Docks Complex - Services,AM006,Building Repairs and Maintenance,1001,14/01/2020,13/01/2020,AMZNMKTPLACE AMAZON.CO,AMAZON.CO.UK,GBR,EC2A 2FA,REDACTED,556*********6128,5999,MISCELLANEOUS AND RETAIL STORES,25.59,Pound Sterling (826),1.000000000,25.59,Debit,85389240013001819267284,02/02/2020,GLOUCESTER CITY COUNCIL
Gloucester City Council,23UE,Docks Complex - Services,AM006,Building Repairs and Maintenance,1001,16/01/2020,15/01/2020,AMZNMktplace,amazon.co.uk,GBR,EC2A 2FA,REDACTED,556*********6128,5999,MISCELLANEOUS AND RETAIL STORES,27.25,Pound Sterling (826),1.000000000,27.25,Debit,52692010015200235012202,02/02/2020,GLOUCESTER CITY COUNCIL
Gloucester City Council,23UE,Docks Complex - Services,AM006,Hospitality & Refreshments,3104,20/01/2020,17/01/2020,SAINSBURYS SACAT 2221,GLOUCESTER,GBR,GL2 5SA,REDACTED,556*********6128,5411,"GROCERY STORES, SUPERMARKETS",4,Pound Sterling (826),1.000000000,4,Debit,25425150018010197026418,02/02/2020,GLOUCESTER CITY COUNCIL
Gloucester City Council,23UE,Docks Complex - Services,AM006,Building Repairs and Maintenance,1001,23/01/2020,22/01/2020,WWW.CHIPPERFIELD.CO.UK,HERTFORDSHIRE,,WD4 9EG,REDACTED,556*********6128,5599,MISCELLANEOUS AUTOMOTIVE DEALERS,129,Pound Sterling (826),1.000000000,129,Debit,55203340023297000031108,02/02/2020,GLOUCESTER CITY COUNCIL
Gloucester City Council,23UE,Docks Complex - Services,AM006,Building Repairs and Maintenance,1001,23/01/2020,22/01/2020,WWW.CHIPPERFIELD.CO.UK,HERTFORDSHIRE,,WD4 9EG,REDACTED,556*********6128,5599,MISCELLANEOUS AUTOMOTIVE DEALERS,129,Pound Sterling (826),1.000000000,129,Debit,55203340023297000031140,02/02/2020,GLOUCESTER CITY COUNCIL
Gloucester City Council,23UE,Docks Complex - Services,AM006,Building Repairs and Maintenance,1001,24/01/2020,23/01/2020,Amazon.co.uk*OJ4BZ6SL5,AMAZON.CO.UK,LUX,L2338,REDACTED,556*********6128,5969,ALL OTHER DIRECT MARKETERS,80,Pound Sterling (826),1.000000000,80,Debit,52692010023200133790503,02/02/2020,GLOUCESTER CITY COUNCIL
Gloucester City Council,23UE,Docks Complex - Services,AM006,Hospitality & Refreshments,3104,24/01/2020,23/01/2020,MCOLLS,GLOUCESTERSHI,GBR,GL1 2DN,REDACTED,556*********6128,5499,"MISC FOOD STORES-SPECIALITY,CONVENIENCE,MARKETS,VENDING MACHINES",1.95,Pound Sterling (826),1.000000000,1.95,Debit,25377750024050236643895,02/02/2020,GLOUCESTER CITY COUNCIL
Gloucester City Council,23UE,Docks Complex - Services,AM006,Hospitality & Refreshments,3104,27/01/2020,24/01/2020,MCOLLS,GLOUCESTERSHI,GBR,GL1 2DN,REDACTED,556*********6128,5499,"MISC FOOD STORES-SPECIALITY,CONVENIENCE,MARKETS,VENDING MACHINES",3,Pound Sterling (826),1.000000000,3,Debit,25377750025060259025036,02/02/2020,GLOUCESTER CITY COUNCIL
Gloucester City Council,23UE,Docks Complex - Services,AM006,Building Repairs and Maintenance,1001,28/01/2020,27/01/2020,AMZNMKTPLACE AMAZON.CO,AMAZON.CO.UK,GBR,EC2A 2FA,REDACTED,556*********6128,5999,MISCELLANEOUS AND RETAIL STORES,37.38,Pound Sterling (826),1.000000000,37.38,Debit,85389240027003866404772,02/02/2020,GLOUCESTER CITY COUNCIL
Gloucester City Council,23UE,Docks Complex - Services,AM006,Building Repairs and Maintenance,1001,28/01/2020,27/01/2020,AMZNMktplace,amazon.co.uk,GBR,EC2A 2FA,REDACTED,556*********6128,5999,MISCELLANEOUS AND RETAIL STORES,27.25,Pound Sterling (826),1.000000000,27.25,Debit,52692010027200065147546,02/02/2020,GLOUCESTER CITY COUNCIL
Gloucester City Council,23UE,Marketing Gloucester Charges,MG001,Printing External,3203,13/01/2020,10/01/2020,Amazon.co.uk*D84F77TR5,AMAZON.CO.UK,LUX,L2338,REDACTED,556*********7185,5969,ALL OTHER DIRECT MARKETERS,16.49,Pound Sterling (826),1.000000000,16.49,Debit,52692010010200088364713,02/02/2020,GLOUCESTER CITY COUNCIL
Gloucester City Council,23UE,Planning Policy,PL004,Public Transport - Staff,2402,09/01/2020,08/01/2020,Trainline,London,GBR,1445,REDACTED,556*********4234,4112,PASSENGER RAILWAYS,28.35,Pound Sterling (826),1.000000000,28.35,Debit,85130080008001746326848,02/02/2020,GLOUCESTER CITY COUNCIL
Gloucester City Council,23UE,Growth and Delivery Manager,PL001,Public Transport - Staff,2402,10/01/2020,09/01/2020,Trainline,London,GBR,1445,REDACTED,556*********4234,4112,PASSENGER RAILWAYS,124.9,Pound Sterling (826),1.000000000,124.9,Debit,85130080009001801339602,02/02/2020,GLOUCESTER CITY COUNCIL
Gloucester City Council,23UE,Licenses,FL002,Public Transport - Staff,2402,13/01/2020,10/01/2020,Trainline,London,GBR,1445,REDACTED,556*********4234,4112,PASSENGER RAILWAYS,130.5,Pound Sterling (826),1.000000000,130.5,Debit,85130080010001852256108,02/02/2020,GLOUCESTER CITY COUNCIL
Gloucester City Council,23UE,Community Wellbeing,FL001,Public Transport - Staff,2402,13/01/2020,10/01/2020,Trainline,London,GBR,1445,REDACTED,556*********4234,4112,PASSENGER RAILWAYS,191.4,Pound Sterling (826),1.000000000,191.4,Debit,85130080010001852265919,02/02/2020,GLOUCESTER CITY COUNCIL
Gloucester City Council,23UE,Transformation,MT006,Public Transport - Staff,2402,13/01/2020,10/01/2020,Trainline,London,GBR,1445,REDACTED,556*********4234,4112,PASSENGER RAILWAYS,232.5,Pound Sterling (826),1.000000000,232.5,Debit,85130080010001852327818,02/02/2020,GLOUCESTER CITY COUNCIL
Gloucester City Council,23UE,Community Wellbeing,FL001,External Training Course Fees,0550,14/01/2020,13/01/2020,EB *APPROACHES TO SUPP,801-413-7200,IRL,DUBLIN 8,REDACTED,556*********4234,7399,BUSINESS SERVICES NOT ELSEWHERE CLASSIFIED,216.78,Pound Sterling (826),1.000000000,216.78,Debit,15276320014000158454315,02/02/2020,GLOUCESTER CITY COUNCIL
Gloucester City Council,23UE,Development Management,PL003,Public Transport - Staff,2402,16/01/2020,15/01/2020,Trainline,London,GBR,1445,REDACTED,556*********4234,4112,PASSENGER RAILWAYS,98.6,Pound Sterling (826),1.000000000,98.6,Debit,85130080015002106553683,02/02/2020,GLOUCESTER CITY COUNCIL
Gloucester City Council,23UE,Community Wellbeing,FL001,Public Transport - Staff,2402,21/01/2020,20/01/2020,Trainline,London,GBR,1445,REDACTED,556*********4234,4112,PASSENGER RAILWAYS,46.9,Pound Sterling (826),1.000000000,46.9,Debit,85130080020002345851156,02/02/2020,GLOUCESTER CITY COUNCIL
Gloucester City Council,23UE,Council Streetcare Team,NE002,Public Transport - Staff,2402,22/01/2020,21/01/2020,Trainline,London,GBR,1445,REDACTED,556*********4234,4112,PASSENGER RAILWAYS,7.75,Pound Sterling (826),1.000000000,7.75,Debit,85130080021002406537362,02/02/2020,GLOUCESTER CITY COUNCIL
Gloucester City Council,23UE,Council Streetcare Team,NE002,Public Transport - Staff,2402,24/01/2020,23/01/2020,Trainline,London,GBR,1445,REDACTED,556*********4234,4112,PASSENGER RAILWAYS,46.9,Pound Sterling (826),1.000000000,46.9,Debit,85130080023003506501637,02/02/2020,GLOUCESTER CITY COUNCIL
Gloucester City Council,23UE,Development Management,PL003,Public Transport - Staff,2402,29/01/2020,28/01/2020,Trainline,London,GBR,1445,REDACTED,556*********4234,4112,PASSENGER RAILWAYS,98.6,Pound Sterling (826),1.000000000,98.6,Debit,85130080028003762191870,02/02/2020,GLOUCESTER CITY COUNCIL
Gloucester City Council,23UE,Members Support,DS002,Members Travel Expenses,3609,08/01/2020,07/01/2020,Trainline,London,GBR,1445,REDACTED,556*********3029,4112,PASSENGER RAILWAYS,82.9,Pound Sterling (826),1.000000000,82.9,Debit,85130080007000693715723,02/02/2020,GLOUCESTER CITY COUNCIL
Gloucester City Council,23UE,Members Support,DS002,Equipment and Furniture,3001,10/01/2020,09/01/2020,TIMPSON GROUP PLC,MANCHESTER M2,GBR,M23 9TT,REDACTED,556*********3029,5719,MISCELLANEOUS HOUSE FURNISHING SPECIALITY STORES,106,Pound Sterling (826),1.000000000,106,Debit,15276320010000256040028,02/02/2020,GLOUCESTER CITY COUNCIL
Gloucester City Council,23UE,Members Support,DS002,Members Travel Expenses,3609,17/01/2020,16/01/2020,Trainline,London,GBR,1445,REDACTED,556*********3029,4112,PASSENGER RAILWAYS,151.4,Pound Sterling (826),1.000000000,151.4,Debit,85130080016002159614241,02/02/2020,GLOUCESTER CITY COUNCIL
Gloucester City Council,23UE,Members Support,DS002,Members Travel Expenses,3609,21/01/2020,20/01/2020,Trainline,London,GBR,1445,REDACTED,556*********3029,4112,PASSENGER RAILWAYS,-71.4,Pound Sterling (826),1.000000000,-71.4,Credit,85130080020002345847212,02/02/2020,GLOUCESTER CITY COUNCIL
Gloucester City Council,23UE,Members Support,DS002,Members Travel Expenses,3609,24/01/2020,23/01/2020,Trainline,London,GBR,1445,REDACTED,556*********3029,4112,PASSENGER RAILWAYS,151.8,Pound Sterling (826),1.000000000,151.8,Debit,85130080023003506605511,02/02/2020,GLOUCESTER CITY COUNCIL
Gloucester City Council,23UE,Members Support,DS002,Hospitality & Refreshments,3104,27/01/2020,23/01/2020,PREMIER INN44011950,COUNTY HALL,,SE1 7PB,REDACTED,556*********3029,3811,PREMIER INN,153.5,Pound Sterling (826),1.000000000,153.5,Debit,55541960025529000052013,02/02/2020,GLOUCESTER CITY COUNCIL
Gloucester City Council,23UE,Housing Services,HS001,B&B Payments,1303,07/01/2020,06/01/2020,TRAVELODGE GB0000,THAME,,OX9 3AT,REDACTED,556*********6959,3615,TRAVELODGE,37.99,Pound Sterling (826),1.000000000,37.99,Debit,55504430006298174518355,02/02/2020,GLOUCESTER CITY COUNCIL
Gloucester City Council,23UE,Housing Services,HS001,B&B Payments,1303,07/01/2020,06/01/2020,TRAVELODGE GB0000,THAME,,OX9 3AT,REDACTED,556*********6959,3615,TRAVELODGE,37.99,Pound Sterling (826),1.000000000,37.99,Debit,55504430006298174609006,02/02/2020,GLOUCESTER CITY COUNCIL
Gloucester City Council,23UE,Housing Services,HS001,B&B Payments,1303,07/01/2020,06/01/2020,TRAVELODGE GB0000,THAME,,OX9 3AT,REDACTED,556*********6959,3615,TRAVELODGE,37.99,Pound Sterling (826),1.000000000,37.99,Debit,55504430006298174611549,02/02/2020,GLOUCESTER CITY COUNCIL
Gloucester City Council,23UE,Housing Services,HS001,B&B Payments,1303,08/01/2020,07/01/2020,TRAVELODGE GB0000,THAME,,OX9 3AT,REDACTED,556*********6959,3615,TRAVELODGE,42.99,Pound Sterling (826),1.000000000,42.99,Debit,55504430007298182203890,02/02/2020,GLOUCESTER CITY COUNCIL
Gloucester City Council,23UE,Housing Services,HS001,B&B Payments,1303,10/01/2020,09/01/2020,TRAVELODGE GB0000,THAME,,OX9 3AT,REDACTED,556*********6959,3615,TRAVELODGE,36.99,Pound Sterling (826),1.000000000,36.99,Debit,55504430009298195419267,02/02/2020,GLOUCESTER CITY COUNCIL
Gloucester City Council,23UE,Housing Services,HS001,B&B Payments,1303,13/01/2020,10/01/2020,TRAVELODGE GB0000,THAME,,OX9 3AT,REDACTED,556*********6959,3615,TRAVELODGE,34.99,Pound Sterling (826),1.000000000,34.99,Debit,55504430010298105395000,02/02/2020,GLOUCESTER CITY COUNCIL
Gloucester City Council,23UE,Housing Services,HS001,B&B Payments,1303,20/01/2020,17/01/2020,TRAVELODGE GB0000,THAME,,OX9 3AT,REDACTED,556*********6959,3615,TRAVELODGE,109.97,Pound Sterling (826),1.000000000,109.97,Debit,55504430017298148508380,02/02/2020,GLOUCESTER CITY COUNCIL
Gloucester City Council,23UE,Housing Services,HS001,B&B Payments,1303,20/01/2020,17/01/2020,TRAVELODGE GB0000,THAME,,OX9 3AT,REDACTED,556*********6959,3615,TRAVELODGE,148.96,Pound Sterling (826),1.000000000,148.96,Debit,55504430017298148599686,02/02/2020,GLOUCESTER CITY COUNCIL
Gloucester City Council,23UE,Housing Services,HS001,B&B Payments,1303,21/01/2020,20/01/2020,TRAVELODGE GB0000,THAME,,OX9 3AT,REDACTED,556*********6959,3615,TRAVELODGE,41.99,Pound Sterling (826),1.000000000,41.99,Debit,55504430020298161953179,02/02/2020,GLOUCESTER CITY COUNCIL
Gloucester City Council,23UE,Housing Services,HS001,B&B Payments,1303,22/01/2020,21/01/2020,TRAVELODGE GB0000,THAME,,OX9 3AT,REDACTED,556*********6959,3615,TRAVELODGE,278.94,Pound Sterling (826),1.000000000,278.94,Debit,55504430021298168635463,02/02/2020,GLOUCESTER CITY COUNCIL
Gloucester City Council,23UE,Housing Services,HS001,B&B Payments,1303,23/01/2020,20/01/2020,TRAVELODGE GB0809,GLOUCESTER,,GL1 5SF,REDACTED,556*********6959,3615,TRAVELODGE,41.99,Pound Sterling (826),1.000000000,41.99,Debit,55504430022110246383413,02/02/2020,GLOUCESTER CITY COUNCIL
Gloucester City Council,23UE,Housing Services,HS001,B&B Payments,1303,24/01/2020,21/01/2020,TRAVELODGE GB0809,GLOUCESTER,,GL1 5SF,REDACTED,556*********6959,3615,TRAVELODGE,47.99,Pound Sterling (826),1.000000000,47.99,Debit,55504430023110268132127,02/02/2020,GLOUCESTER CITY COUNCIL
Gloucester City Council,23UE,Housing Services,HS001,B&B Payments,1303,28/01/2020,27/01/2020,TRAVELODGE GB0000,THAME,,OX9 3AT,REDACTED,556*********6959,3615,TRAVELODGE,330.92,Pound Sterling (826),1.000000000,330.92,Debit,55504430027298105968872,02/02/2020,GLOUCESTER CITY COUNCIL
Gloucester City Council,23UE,Blackfriars Weddings,GH011,Advertising & Publicity,3404,07/01/2020,06/01/2020,THE WEDDING BUSINESS A,CHIPPENHAM,LND,SN15 1DZ,REDACTED,556*********8256,8999,PROFESSIONAL SERVICES NOT ELSEWHERE CLASSIFIED,45,Pound Sterling (826),1.000000000,45,Debit,85383900006000003544163,02/02/2020,GLOUCESTER CITY COUNCIL
Gloucester City Council,23UE,Guildhall Bar and Caf�,GH005,Advertising & Publicity,3404,09/01/2020,08/01/2020,WWW.INSTANTPRINT.C,01709 382202,,S63 5DR,REDACTED,556*********8256,7338,QUICK-COPY AND REPRODUCTION SERVICES,22.99,Pound Sterling (826),1.000000000,22.99,Debit,85481470009202798667157,02/02/2020,GLOUCESTER CITY COUNCIL
Gloucester City Council,23UE,Blackfriars,GH010,General Supplies/Materials,3025,16/01/2020,15/01/2020,HOBBYCRAFT,GLOUCESTER,,GL1 5SF,REDACTED,556*********8256,5970,"ARTIST SUPPLY STORES, CRAFT SHOPS",13.5,Pound Sterling (826),1.000000000,13.5,Debit,55541960016469000040455,02/02/2020,GLOUCESTER CITY COUNCIL
Gloucester City Council,23UE,Gloucester Guildhall,GH001,Building Repairs and Maintenance,1001,16/01/2020,15/01/2020,B & Q 1179,GLOUCESTER,,GL12SG,REDACTED,556*********8256,5200,HOME SUPPLY WAREHOUSE STORES,284.73,Pound Sterling (826),1.000000000,284.73,Debit,85481470016204427128537,02/02/2020,GLOUCESTER CITY COUNCIL
Gloucester City Council,23UE,Guildhall Events,GH002,Advertising & Publicity,3404,20/01/2020,17/01/2020,WWW.INSTANTPRINT.C,01709 382202,,S63 5DR,REDACTED,556*********8256,7338,QUICK-COPY AND REPRODUCTION SERVICES,49.99,Pound Sterling (826),1.000000000,49.99,Debit,85481470018204972849154,02/02/2020,GLOUCESTER CITY COUNCIL
Gloucester City Council,23UE,Community Wellbeing,FL001,External Training Course Fees,0550,09/01/2020,08/01/2020,CHARTERED INSTITUTE OF,LONDON,GBR,SE1 8DJ,REDACTED,556*********3063,8398,CHARITABLE AND SOCIAL SERVICE ORGANIZATIONS,600,Pound Sterling (826),1.000000000,600,Debit,55184220008510093102230,02/02/2020,GLOUCESTER CITY COUNCIL
Gloucester City Council,23UE,Civica Admin Charges,BI002,Professional Advice/Consultants Fees,3952,14/01/2020,13/01/2020,HMCOURTS-SERVICE.G,01452420100,,GL12ZG,REDACTED,556*********3063,9222,FINES,451.5,Pound Sterling (826),1.000000000,451.5,Debit,85481470014203974633636,02/02/2020,GLOUCESTER CITY COUNCIL
Gloucester City Council,23UE,Business Transformation,BI006,Equipment and Furniture,3001,16/01/2020,15/01/2020,Amazon.co.uk*LP9E81WM5,AMAZON.CO.UK,LUX,L2338,REDACTED,556*********3063,5969,ALL OTHER DIRECT MARKETERS,51.99,Pound Sterling (826),1.000000000,51.99,Debit,52692010015200199433956,02/02/2020,GLOUCESTER CITY COUNCIL
Gloucester City Council,23UE,Business Transformation,BI006,Equipment and Furniture,3001,21/01/2020,20/01/2020,Amazon.co.uk*H79Q92KL5,AMAZON.CO.UK,LUX,L2338,REDACTED,556*********3063,5969,ALL OTHER DIRECT MARKETERS,18.98,Pound Sterling (826),1.000000000,18.98,Debit,52692010020200441793028,02/02/2020,GLOUCESTER CITY COUNCIL
Gloucester City Council,23UE,Community Wellbeing,FL001,Fuel - Vehicles/Plant,2102,30/01/2020,29/01/2020,ASDA PETROL 4615,GLOUCESTER,GBR,GL1 1DS,REDACTED,556*********3063,5541,SERVICE STATIONS,51.51,Pound Sterling (826),1.000000000,51.51,Debit,35377750030090263606101,02/02/2020,GLOUCESTER CITY COUNCIL
Gloucester City Council,23UE,Guildhall Bar and Caf�,GH005,Catering Provisions,3103,23/01/2020,22/01/2020,SAINSBURYS 0771,GLOUCESTER,GBR,GL1 2AG,REDACTED,556*********1585,5411,"GROCERY STORES, SUPERMARKETS",22.95,Pound Sterling (826),1.000000000,22.95,Debit,25425150023040182806337,02/02/2020,GLOUCESTER CITY COUNCIL
Gloucester City Council,23UE,Guildhall Bar and Caf�,GH005,Catering Provisions,3103,23/01/2020,22/01/2020,ICELAND,GLOUCESTER,GBR,GL1 1SA,REDACTED,556*********1585,5411,"GROCERY STORES, SUPERMARKETS",28,Pound Sterling (826),1.000000000,28,Debit,25377750023040149340292,02/02/2020,GLOUCESTER CITY COUNCIL
Gloucester City Council,23UE,Guildhall Bar and Caf�,GH005,Catering Provisions,3103,23/01/2020,22/01/2020,ICELAND,GLOUCESTER,GBR,GL1 1SA,REDACTED,556*********1585,5411,"GROCERY STORES, SUPERMARKETS",5.4,Pound Sterling (826),1.000000000,5.4,Debit,25377750023040149340714,02/02/2020,GLOUCESTER CITY COUNCIL
Gloucester City Council,23UE,Guildhall Bar and Caf�,GH005,Catering Provisions,3103,23/01/2020,22/01/2020,CLINTONS 214,GLOUCESTER,GBR,GL1 1RY,REDACTED,556*********1585,5947,"GIFT, CARD, NOVELTY, AND SOUVENIR SHOPS",2.98,Pound Sterling (826),1.000000000,2.98,Debit,25377750023040219600500,02/02/2020,GLOUCESTER CITY COUNCIL
Gloucester City Council,23UE,Guildhall Bar and Caf�,GH005,Catering Provisions,3103,24/01/2020,23/01/2020,SAINSBURYS SACAT 0771,GLOUCESTER,GBR,GL1 2AG,REDACTED,556*********1585,5411,"GROCERY STORES, SUPERMARKETS",10.85,Pound Sterling (826),1.000000000,10.85,Debit,25425150024050193865445,02/02/2020,GLOUCESTER CITY COUNCIL
Gloucester City Council,23UE,Guildhall Bar and Caf�,GH005,Catering Provisions,3103,24/01/2020,23/01/2020,ICELAND,GLOUCESTER,GBR,GL1 1SA,REDACTED,556*********1585,5411,"GROCERY STORES, SUPERMARKETS",7,Pound Sterling (826),1.000000000,7,Debit,25377750024050143461860,02/02/2020,GLOUCESTER CITY COUNCIL
Gloucester City Council,23UE,Guildhall Bar and Caf�,GH005,Catering Provisions,3103,27/01/2020,26/01/2020,ICELAND,GLOUCESTER,GBR,GL1 1SA,REDACTED,556*********1585,5411,"GROCERY STORES, SUPERMARKETS",5,Pound Sterling (826),1.000000000,5,Debit,65377750027060998174768,02/02/2020,GLOUCESTER CITY COUNCIL
Gloucester City Council,23UE,Guildhall Bar and Caf�,GH005,Catering Provisions,3103,27/01/2020,26/01/2020,BOOKER LIMITED GLOUCES,GLOUCESTER,GBR,GL4 3RT,REDACTED,556*********1585,5811,CATERERS,63.64,Pound Sterling (826),1.000000000,63.64,Debit,55184220026510276642299,02/02/2020,GLOUCESTER CITY COUNCIL
Gloucester City Council,23UE,Guildhall Bar and Caf�,GH005,Catering Provisions,3103,28/01/2020,27/01/2020,ICELAND,GLOUCESTER,GBR,GL1 1SA,REDACTED,556*********1585,5411,"GROCERY STORES, SUPERMARKETS",10.58,Pound Sterling (826),1.000000000,10.58,Debit,25377750028070140663355,02/02/2020,GLOUCESTER CITY COUNCIL
Gloucester City Council,23UE,Guildhall Bar and Caf�,GH005,Catering Provisions,3103,28/01/2020,27/01/2020,ICELAND,GLOUCESTER,GBR,GL1 1SA,REDACTED,556*********1585,5411,"GROCERY STORES, SUPERMARKETS",10.1,Pound Sterling (826),1.000000000,10.1,Debit,25377750028070140659759,02/02/2020,GLOUCESTER CITY COUNCIL
Gloucester City Council,23UE,Guildhall Bar and Caf�,GH005,Catering Provisions,3103,29/01/2020,28/01/2020,SAINSBURYS 0771,GLOUCESTER,GBR,GL1 2AG,REDACTED,556*********1585,5411,"GROCERY STORES, SUPERMARKETS",16.45,Pound Sterling (826),1.000000000,16.45,Debit,35425150029080320976926,02/02/2020,GLOUCESTER CITY COUNCIL
